[Event "*** Titled Tuesday Blitz"]
[Site "Chess.com"]
[Date "2019.02.05"]
[Round "9"]
[White "Alopekos"]
[Black "GMMatamoros"]
[Result "1-0"]
[WhiteElo "2509"]
[BlackElo "2493"]
[TimeControl "180+2"]
[EndTime "15:12:45 PST"]
[Termination "Alopekos won by checkmate"]

1. e4 {[%clk 0:03:01.9]} 1... c5 {[%clk 0:02:58.5]} 2. Nf3 {[%clk 0:03:02.7]}
2... Nc6 {[%clk 0:02:58.8]} 3. Nc3 {[%clk 0:03:03.4]} 3... g6 {[%clk 0:02:58.9]}
4. d4 {[%clk 0:03:03.8]} 4... cxd4 {[%clk 0:03:00.8]} 5. Nxd4 {[%clk 0:03:05.1]}
5... Bg7 {[%clk 0:03:02.4]} 6. Nxc6 {[%clk 0:03:06.6]} 6... bxc6 {[%clk
0:03:03]} 7. Bc4 {[%clk 0:03:08.2]} 7... Qa5 {[%clk 0:02:58.3]} 8. Bd2 {[%clk
0:03:08.8]} 8... Qb6 {[%clk 0:02:53.5]} 9. Qf3 {[%clk 0:02:53.9]} 9... e6 {[%clk
0:02:48]} 10. O-O-O {[%clk 0:02:29.7]} 10... Nf6 {[%clk 0:02:44.4]} 11. e5
{[%clk 0:02:23]} 11... Nd5 {[%clk 0:02:45.3]} 12. Ne4 {[%clk 0:02:24]} 12...
Bxe5 {[%clk 0:02:31.9]} 13. Bb3 {[%clk 0:02:24.9]} 13... O-O {[%clk 0:02:30.3]}
14. Bh6 {[%clk 0:02:06.1]} 14... a5 {[%clk 0:02:11.7]} 15. Bxf8 {[%clk
0:01:41.1]} 15... Kxf8 {[%clk 0:02:05.9]} 16. a4 {[%clk 0:01:19.7]} 16... Kg7
{[%clk 0:01:56.2]} 17. h4 {[%clk 0:01:15.1]} 17... h5 {[%clk 0:01:52.2]} 18. Ng5
{[%clk 0:00:29.7]} 18... f6 {[%clk 0:01:26.7]} 19. g4 {[%clk 0:00:29.9]} 19...
hxg4 {[%clk 0:01:10.7]} 20. Qxg4 {[%clk 0:00:31.8]} 20... Qb4 {[%clk 0:01:09.8]}
21. Qe2 {[%clk 0:00:07.4]} 21... Ba6 {[%clk 0:01:05.7]} 22. Qe4 {[%clk
0:00:02.6]} 22... Bf4+ {[%clk 0:01:02]} 23. Kb1 {[%clk 0:00:03.5]} 23... fxg5
{[%clk 0:01:03]} 24. Qxb4 {[%clk 0:00:02.8]} 24... axb4 {[%clk 0:01:01.2]} 25.
hxg5 {[%clk 0:00:04.7]} 25... Bxg5 {[%clk 0:01:01.6]} 26. Rdg1 {[%clk
0:00:05.6]} 26... Kf6 {[%clk 0:01:00.6]} 27. Rh7 {[%clk 0:00:05.8]} 27... Ne7
{[%clk 0:01:00.5]} 28. Rg4 {[%clk 0:00:03.7]} 28... Bd2 {[%clk 0:00:35.5]} 29.
Rd4 {[%clk 0:00:03.5]} 29... Be1 {[%clk 0:00:31.7]} 30. Rxd7 {[%clk 0:00:03.4]}
30... Nf5 {[%clk 0:00:32.2]} 31. f4 {[%clk 0:00:03.4]} 31... Bg3 {[%clk
0:00:32.2]} 32. Rdf7# {[%clk 0:00:03.6]} 1-0

[Event "*** Titled Tuesday Blitz"]
[Site "Chess.com"]
[Date "2019.02.05"]
[Round "9"]
[White "JoachimMouhamad"]
[Black "GCamachoMartinez"]
[Result "1/2-1/2"]
[WhiteElo "2277"]
[BlackElo "2357"]
[TimeControl "180+2"]
[EndTime "15:12:48 PST"]
[Termination "Game drawn by agreement"]

1. e4 {[%clk 0:03:00.3]} 1... e5 {[%clk 0:02:56.5]} 2. Nf3 {[%clk 0:03:00.9]}
2... Nf6 {[%clk 0:02:56.9]} 3. Nxe5 {[%clk 0:02:59.3]} 3... d6 {[%clk 0:02:58]}
4. Nf3 {[%clk 0:02:59.6]} 4... Nxe4 {[%clk 0:02:59]} 5. Nc3 {[%clk 0:02:58.1]}
5... Nxc3 {[%clk 0:02:58.8]} 6. dxc3 {[%clk 0:02:59.7]} 6... Be7 {[%clk
0:03:00.7]} 7. Be3 {[%clk 0:02:57.2]} 7... Nc6 {[%clk 0:03:02.6]} 8. Qd2 {[%clk
0:02:58.2]} 8... Ne5 {[%clk 0:03:03.7]} 9. O-O-O {[%clk 0:02:58.5]} 9... Nxf3
{[%clk 0:03:04]} 10. gxf3 {[%clk 0:03:00.4]} 10... Be6 {[%clk 0:03:05.7]} 11.
Rg1 {[%clk 0:02:59]} 11... g6 {[%clk 0:03:05.9]} 12. Bd4 {[%clk 0:02:39.9]}
12... Rg8 {[%clk 0:03:06.7]} 13. Bb5+ {[%clk 0:02:26.4]} 13... c6 {[%clk
0:03:05.3]} 14. Ba4 {[%clk 0:02:23]} 14... Qa5 {[%clk 0:03:04.8]} 15. Bb3 {[%clk
0:02:06.1]} 15... Bxb3 {[%clk 0:03:04.9]} 16. cxb3 {[%clk 0:02:08]} 16... O-O-O
{[%clk 0:02:58.4]} 17. Kb1 {[%clk 0:02:05.6]} 17... Qf5+ {[%clk 0:02:56.3]} 18.
Qd3 {[%clk 0:02:04.4]} 18... Qxd3+ {[%clk 0:02:56.4]} 19. Rxd3 {[%clk
0:02:06.3]} 19... b6 {[%clk 0:02:29.3]} 20. c4 {[%clk 0:02:07]} 20... Rge8
{[%clk 0:02:28.3]} 21. Bc3 {[%clk 0:02:05.6]} 21... Bf8 {[%clk 0:02:23.9]} 22.
Rgd1 {[%clk 0:02:05.6]} 22... Re6 {[%clk 0:02:24.6]} 23. Kc2 {[%clk 0:02:03.1]}
23... Re2+ {[%clk 0:02:23]} 24. R3d2 {[%clk 0:02:04.7]} 24... Rxd2+ {[%clk
0:02:23.4]} 25. Kxd2 {[%clk 0:02:05.9]} 25... d5 {[%clk 0:02:20.5]} 26. Kc2
{[%clk 0:02:00.8]} 26... dxc4 {[%clk 0:02:20.6]} 27. Rxd8+ {[%clk 0:02:01.8]}
27... Kxd8 {[%clk 0:02:22.4]} 28. bxc4 {[%clk 0:02:03.7]} 28... Bc5 {[%clk
0:02:22.1]} 29. Be1 {[%clk 0:02:02.3]} 29... Bd4 {[%clk 0:02:21.8]} 30. b3
{[%clk 0:02:03.2]} 30... c5 {[%clk 0:02:23.1]} 31. Kd3 {[%clk 0:02:04.3]} 31...
f5 {[%clk 0:02:24.1]} 32. Ke2 {[%clk 0:02:06]} 32... Kd7 {[%clk 0:02:24.6]} 33.
Bd2 {[%clk 0:02:07.5]} 33... Kc6 {[%clk 0:02:22.1]} 34. Bf4 {[%clk 0:02:07.9]}
34... a6 {[%clk 0:02:21.8]} 35. Be3 {[%clk 0:02:07.9]} 35... Be5 {[%clk
0:02:20.7]} 36. h3 {[%clk 0:02:07.3]} 36... b5 {[%clk 0:02:20.4]} 37. Kd3 {[%clk
0:02:08.7]} 37... a5 {[%clk 0:02:07.7]} 38. cxb5+ {[%clk 0:01:54.5]} 38... Kxb5
{[%clk 0:02:08]} 39. Bd2 {[%clk 0:01:56]} 39... Bd4 {[%clk 0:02:01.1]} 40. a4+
{[%clk 0:01:55.5]} 40... Kc6 {[%clk 0:01:59.6]} 41. Kc4 {[%clk 0:01:53.7]} 41...
Bxf2 {[%clk 0:01:59.3]} 42. Bxa5 {[%clk 0:01:55.1]} 42... Be3 {[%clk 0:01:57.9]}
43. Bd8 {[%clk 0:01:53.2]} 43... g5 {[%clk 0:01:55.7]} 44. a5 {[%clk 0:01:45.4]}
44... h5 {[%clk 0:01:55.4]} 45. a6 {[%clk 0:01:46]} 45... g4 {[%clk 0:01:55.6]}
46. fxg4 {[%clk 0:01:46.9]} 46... fxg4 {[%clk 0:01:56.2]} 47. hxg4 {[%clk
0:01:45.5]} 47... hxg4 {[%clk 0:01:58.1]} 48. Kd3 {[%clk 0:01:42.7]} 48... Bf2
{[%clk 0:01:34.1]} 49. Ke2 {[%clk 0:01:39.1]} 49... Bd4 {[%clk 0:01:34.9]} 50.
Kf1 {[%clk 0:01:35.2]} 50... Be5 {[%clk 0:01:28.4]} 51. a7 {[%clk 0:01:29.2]}
51... Kb7 {[%clk 0:01:28.1]} 52. Bb6 {[%clk 0:01:30.6]} 52... Bd4 {[%clk
0:01:27]} 53. b4 {[%clk 0:01:28.1]} 53... cxb4 {[%clk 0:01:04.3]} 54. Bxd4
{[%clk 0:01:28.6]} 54... b3 {[%clk 0:01:05.6]} 55. Kg2 {[%clk 0:01:29.7]}
1/2-1/2

[Event "*** Titled Tuesday Blitz"]
[Site "Chess.com"]
[Date "2019.02.05"]
[Round "9"]
[White "EugeneRougon"]
[Black "VerdeNotte"]
[Result "0-1"]
[WhiteElo "2587"]
[BlackElo "2824"]
[TimeControl "180+2"]
[EndTime "15:12:50 PST"]
[Termination "VerdeNotte won by checkmate"]

1. e4 {[%clk 0:03:01.9]} 1... c6 {[%clk 0:02:59.9]} 2. d4 {[%clk 0:03:02.4]}
2... d5 {[%clk 0:03:01.2]} 3. Nc3 {[%clk 0:03:03.8]} 3... dxe4 {[%clk
0:03:02.3]} 4. Nxe4 {[%clk 0:03:05.7]} 4... Nf6 {[%clk 0:03:03.7]} 5. Nxf6+
{[%clk 0:03:06.2]} 5... exf6 {[%clk 0:03:05]} 6. c3 {[%clk 0:03:07.8]} 6... Bd6
{[%clk 0:03:05.2]} 7. Bd3 {[%clk 0:03:09.4]} 7... O-O {[%clk 0:03:06.1]} 8. Qc2
{[%clk 0:03:10.7]} 8... Re8+ {[%clk 0:03:07]} 9. Ne2 {[%clk 0:03:12.3]} 9... h5
{[%clk 0:03:08.3]} 10. Bd2 {[%clk 0:03:05.9]} 10... Nd7 {[%clk 0:03:05]} 11.
O-O-O {[%clk 0:03:02.9]} 11... Nf8 {[%clk 0:03:04.8]} 12. f3 {[%clk 0:02:41.9]}
12... a5 {[%clk 0:02:49.8]} 13. Rdg1 {[%clk 0:02:19]} 13... Be6 {[%clk
0:02:41.4]} 14. g4 {[%clk 0:02:17.9]} 14... hxg4 {[%clk 0:02:38.2]} 15. fxg4
{[%clk 0:02:17.8]} 15... Bd5 {[%clk 0:02:38.7]} 16. h4 {[%clk 0:02:05.7]} 16...
Bxh1 {[%clk 0:02:37.4]} 17. Rxh1 {[%clk 0:02:07.6]} 17... Qe7 {[%clk 0:02:17.7]}
18. g5 {[%clk 0:02:02.1]} 18... f5 {[%clk 0:02:18.6]} 19. h5 {[%clk 0:01:50.3]}
19... Qe6 {[%clk 0:02:13]} 20. Kb1 {[%clk 0:01:00.8]} 20... Qd5 {[%clk
0:02:12.6]} 21. Rf1 {[%clk 0:00:31.8]} 21... Qg2 {[%clk 0:02:12.8]} 22. Qd1
{[%clk 0:00:16.2]} 22... g6 {[%clk 0:01:52.7]} 23. hxg6 {[%clk 0:00:17]} 23...
fxg6 {[%clk 0:01:53.6]} 24. Nf4 {[%clk 0:00:14.9]} 24... Bxf4 {[%clk 0:01:53.6]}
25. Bxf4 {[%clk 0:00:16]} 25... Ne6 {[%clk 0:01:54.6]} 26. Be5 {[%clk 0:00:16]}
26... b5 {[%clk 0:01:41.3]} 27. Rh1 {[%clk 0:00:15]} 27... Ng7 {[%clk
0:01:42.5]} 28. Rh6 {[%clk 0:00:10.8]} 28... Rad8 {[%clk 0:01:36]} 29. Rxg6
{[%clk 0:00:10.7]} 29... Rxe5 {[%clk 0:01:36.9]} 30. dxe5 {[%clk 0:00:11.5]}
30... Qd5 {[%clk 0:01:33.8]} 31. Kc2 {[%clk 0:00:10.6]} 31... Kf7 {[%clk
0:01:30.7]} 32. Rf6+ {[%clk 0:00:11.1]} 32... Ke7 {[%clk 0:01:32.2]} 33. Qe2
{[%clk 0:00:12.1]} 33... Qxa2 {[%clk 0:01:30.6]} 34. e6 {[%clk 0:00:10.5]} 34...
Nxe6 {[%clk 0:01:15.6]} 35. Bxf5 {[%clk 0:00:08.2]} 35... Rd6 {[%clk 0:01:13.7]}
36. Qe5 {[%clk 0:00:03.9]} 36... Qa4+ {[%clk 0:01:12.2]} 37. b3 {[%clk
0:00:02.4]} 37... Qa2+ {[%clk 0:01:11.9]} 38. Kc1 {[%clk 0:00:03.9]} 38... Qd2+
{[%clk 0:01:08.8]} 39. Kb1 {[%clk 0:00:05.1]} 39... Qd1+ {[%clk 0:01:10.3]} 40.
Kb2 {[%clk 0:00:06]} 40... Rd2+ {[%clk 0:01:11.8]} 41. Ka3 {[%clk 0:00:06.4]}
41... Qa1# {[%clk 0:01:12.9]} 0-1

[Event "*** Titled Tuesday Blitz"]
[Site "Chess.com"]
[Date "2019.02.05"]
[Round "9"]
[White "mouseWLZ"]
[Black "Zaven_ChessMood"]
[Result "0-1"]
[WhiteElo "2492"]
[BlackElo "2875"]
[TimeControl "180+2"]
[EndTime "15:12:56 PST"]
[Termination "Zaven_ChessMood won by checkmate"]

1. e4 {[%clk 0:03:01.9]} 1... c5 {[%clk 0:02:59.9]} 2. Nf3 {[%clk 0:03:03]} 2...
d6 {[%clk 0:03:00.5]} 3. d4 {[%clk 0:03:03.1]} 3... cxd4 {[%clk 0:03:01.5]} 4.
Nxd4 {[%clk 0:03:05]} 4... Nf6 {[%clk 0:03:00.9]} 5. f3 {[%clk 0:03:06]} 5... e5
{[%clk 0:02:59.7]} 6. Nb3 {[%clk 0:03:06.7]} 6... Be7 {[%clk 0:02:59.5]} 7. c4
{[%clk 0:03:07.1]} 7... a5 {[%clk 0:02:59.8]} 8. Be3 {[%clk 0:03:06.8]} 8... a4
{[%clk 0:03:00.3]} 9. N3d2 {[%clk 0:03:06.9]} 9... Qa5 {[%clk 0:02:58.8]} 10.
Nc3 {[%clk 0:03:07.7]} 10... O-O {[%clk 0:02:53.1]} 11. Be2 {[%clk 0:02:48.2]}
11... Nc6 {[%clk 0:02:54]} 12. O-O {[%clk 0:02:47.2]} 12... Bd8 {[%clk
0:02:54.6]} 13. Nd5 {[%clk 0:02:40]} 13... Be6 {[%clk 0:02:52.5]} 14. Kh1 {[%clk
0:02:34.5]} 14... Nd7 {[%clk 0:02:47.3]} 15. b4 {[%clk 0:01:42.1]} 15... Nxb4
{[%clk 0:02:43.5]} 16. Nxb4 {[%clk 0:01:28.3]} 16... Qxb4 {[%clk 0:02:44.1]} 17.
Rb1 {[%clk 0:01:29.8]} 17... Qa3 {[%clk 0:02:37.7]} 18. Bg1 {[%clk 0:01:27]}
18... Nc5 {[%clk 0:02:29.1]} 19. Qc2 {[%clk 0:01:28.1]} 19... Ba5 {[%clk
0:02:27.8]} 20. f4 {[%clk 0:01:26.8]} 20... Qc3 {[%clk 0:02:25.7]} 21. Qxc3
{[%clk 0:01:14.1]} 21... Bxc3 {[%clk 0:02:26.6]} 22. Nf3 {[%clk 0:01:15.6]}
22... Nxe4 {[%clk 0:02:26.6]} 23. fxe5 {[%clk 0:01:15.7]} 23... dxe5 {[%clk
0:02:24]} 24. Rxb7 {[%clk 0:01:15.2]} 24... Rfd8 {[%clk 0:02:20.4]} 25. c5
{[%clk 0:01:09.1]} 25... Bxa2 {[%clk 0:02:19.9]} 26. c6 {[%clk 0:01:08]} 26...
Bd5 {[%clk 0:02:19.7]} 27. Rc1 {[%clk 0:00:45.6]} 27... a3 {[%clk 0:02:17.6]}
28. Rd7 {[%clk 0:00:06.1]} 28... Bxc6 {[%clk 0:02:15.3]} 29. Rxd8+ {[%clk
0:00:04]} 29... Rxd8 {[%clk 0:02:16.4]} 30. Bc4 {[%clk 0:00:05.1]} 30... Bd5
{[%clk 0:02:11.6]} 31. Rd1 {[%clk 0:00:05.8]} 31... Nf6 {[%clk 0:02:10.2]} 32.
Ba2 {[%clk 0:00:02.6]} 32... h6 {[%clk 0:02:09.4]} 33. Nh4 {[%clk 0:00:02.8]}
33... Bd4 {[%clk 0:02:08.4]} 34. Bb1 {[%clk 0:00:03.3]} 34... a2 {[%clk
0:02:07.2]} 35. Bxa2 {[%clk 0:00:04.4]} 35... Bxa2 {[%clk 0:02:08.4]} 36. Nf5
{[%clk 0:00:06.1]} 36... Be6 {[%clk 0:02:06.1]} 37. Nxd4 {[%clk 0:00:07]} 37...
exd4 {[%clk 0:02:07.3]} 38. Rxd4 {[%clk 0:00:08.9]} 38... Rxd4 {[%clk
0:02:07.8]} 39. Bxd4 {[%clk 0:00:10.8]} 39... Ne4 {[%clk 0:02:09.2]} 40. Kg1
{[%clk 0:00:11.9]} 40... Bd5 {[%clk 0:02:10.6]} 41. g3 {[%clk 0:00:13.2]} 41...
f6 {[%clk 0:02:12.1]} 42. Kf1 {[%clk 0:00:13.5]} 42... Kf7 {[%clk 0:02:13.7]}
43. Kg1 {[%clk 0:00:14.8]} 43... g5 {[%clk 0:02:15.4]} 44. Kf1 {[%clk
0:00:16.2]} 44... Kg6 {[%clk 0:02:17.1]} 45. Kg1 {[%clk 0:00:17.8]} 45... Kf5
{[%clk 0:02:18.8]} 46. Kf1 {[%clk 0:00:19.2]} 46... Kg4 {[%clk 0:02:20.5]} 47.
Kg1 {[%clk 0:00:20.6]} 47... Kh3 {[%clk 0:02:22.1]} 48. Bb2 {[%clk 0:00:21.2]}
48... f5 {[%clk 0:02:23.4]} 49. Bg7 {[%clk 0:00:22.2]} 49... h5 {[%clk
0:02:24.3]} 50. Be5 {[%clk 0:00:23.9]} 50... Nd2 {[%clk 0:02:25.3]} 51. Bf6
{[%clk 0:00:24.9]} 51... Nf3+ {[%clk 0:02:26.4]} 52. Kh1 {[%clk 0:00:26.5]}
52... Nxh2+ {[%clk 0:02:20.8]} 53. Kg1 {[%clk 0:00:27.2]} 53... Kxg3 {[%clk
0:02:22.1]} 54. Be5+ {[%clk 0:00:25.7]} 54... f4 {[%clk 0:02:20.7]} 55. Bxf4+
{[%clk 0:00:25.5]} 55... Kxf4 {[%clk 0:02:21.8]} 56. Kxh2 {[%clk 0:00:27.4]}
56... Be6 {[%clk 0:02:20]} 57. Kg2 {[%clk 0:00:28.7]} 57... g4 {[%clk
0:02:21.2]} 58. Kh2 {[%clk 0:00:30.6]} 58... g3+ {[%clk 0:02:22.2]} 59. Kg2
{[%clk 0:00:32.5]} 59... h4 {[%clk 0:02:23.7]} 60. Kg1 {[%clk 0:00:34.3]} 60...
h3 {[%clk 0:02:25.1]} 61. Kh1 {[%clk 0:00:36.2]} 61... Bd5+ {[%clk 0:02:23.1]}
62. Kg1 {[%clk 0:00:38.1]} 62... h2+ {[%clk 0:02:24.4]} 63. Kf1 {[%clk
0:00:39.7]} 63... h1=Q+ {[%clk 0:02:25.4]} 64. Ke2 {[%clk 0:00:41]} 64... Qf3+
{[%clk 0:02:26.5]} 65. Ke1 {[%clk 0:00:42.1]} 65... Qf2+ {[%clk 0:02:27.5]} 66.
Kd1 {[%clk 0:00:43.4]} 66... Ke3 {[%clk 0:02:28]} 67. Kc1 {[%clk 0:00:45.3]}
67... Kd3 {[%clk 0:02:29.5]} 68. Kb1 {[%clk 0:00:47.2]} 68... Kc3 {[%clk
0:02:30.6]} 69. Kc1 {[%clk 0:00:49.1]} 69... Qc2# {[%clk 0:02:31]} 0-1

[Event "*** Titled Tuesday Blitz"]
[Site "Chess.com"]
[Date "2019.02.05"]
[Round "9"]
[White "salomez"]
[Black "HrvojeZagreb"]
[Result "0-1"]
[WhiteElo "2113"]
[BlackElo "2112"]
[TimeControl "180+2"]
[EndTime "15:13:05 PST"]
[Termination "HrvojeZagreb won on time"]

1. e4 {[%clk 0:03:01.9]} 1... e6 {[%clk 0:02:52.1]} 2. d4 {[%clk 0:02:47.4]}
2... d5 {[%clk 0:02:51.2]} 3. Nc3 {[%clk 0:02:47.5]} 3... dxe4 {[%clk
0:02:52.1]} 4. Nxe4 {[%clk 0:02:48.1]} 4... Nd7 {[%clk 0:02:54]} 5. Nf3 {[%clk
0:02:47.9]} 5... Ngf6 {[%clk 0:02:55.9]} 6. Bd3 {[%clk 0:02:47.8]} 6... c5
{[%clk 0:02:56]} 7. O-O {[%clk 0:02:41]} 7... cxd4 {[%clk 0:02:56.2]} 8. Nxd4
{[%clk 0:02:37.7]} 8... Be7 {[%clk 0:02:57.3]} 9. b3 {[%clk 0:02:28.3]} 9... O-O
{[%clk 0:02:57.3]} 10. Bb2 {[%clk 0:02:29]} 10... Ne5 {[%clk 0:02:56.8]} 11.
Nxe6 {[%clk 0:02:22.5]} 11... Nxd3 {[%clk 0:02:17.7]} 12. Nxd8 {[%clk
0:02:13.4]} 12... Nxb2 {[%clk 0:02:17.5]} 13. Qd4 {[%clk 0:01:35.7]} 13... Rxd8
{[%clk 0:02:11.1]} 14. Qxb2 {[%clk 0:01:33.8]} 14... Nxe4 {[%clk 0:02:11.2]} 15.
Qe5 {[%clk 0:01:34.4]} 15... Bf6 {[%clk 0:02:06.6]} 16. Qxe4 {[%clk 0:01:35.2]}
16... Bxa1 {[%clk 0:02:08.1]} 17. Rxa1 {[%clk 0:01:35.5]} 17... Rb8 {[%clk
0:02:02.3]} 18. h4 {[%clk 0:01:02.4]} 18... Be6 {[%clk 0:01:59.1]} 19. h5 {[%clk
0:01:02.2]} 19... h6 {[%clk 0:02:00]} 20. c4 {[%clk 0:01:00.6]} 20... b6 {[%clk
0:01:56.4]} 21. Rc1 {[%clk 0:00:57.2]} 21... Rd2 {[%clk 0:01:56]} 22. a3 {[%clk
0:00:53.9]} 22... Rbd8 {[%clk 0:01:55.8]} 23. b4 {[%clk 0:00:50.6]} 23... R2d4
{[%clk 0:01:53.8]} 24. Qe2 {[%clk 0:00:33.5]} 24... Rd2 {[%clk 0:01:30.9]} 25.
Qe5 {[%clk 0:00:32.1]} 25... Rc8 {[%clk 0:01:26.6]} 26. c5 {[%clk 0:00:31.9]}
26... bxc5 {[%clk 0:01:27.8]} 27. Rxc5 {[%clk 0:00:32]} 27... Rcd8 {[%clk
0:01:24.9]} 28. Rc7 {[%clk 0:00:27.9]} 28... a6 {[%clk 0:01:19.3]} 29. Ra7
{[%clk 0:00:26]} 29... Rd1+ {[%clk 0:01:18.5]} 30. Kh2 {[%clk 0:00:25.9]} 30...
R1d5 {[%clk 0:01:19.7]} 31. Qe2 {[%clk 0:00:23.1]} 31... Rd4 {[%clk 0:01:06.8]}
32. Rxa6 {[%clk 0:00:15.3]} 32... Bc4 {[%clk 0:01:07.7]} 33. Qe3 {[%clk
0:00:02.7]} 33... Bxa6 {[%clk 0:01:05.2]} 34. a4 {[%clk 0:00:03.2]} 34... Rxb4
{[%clk 0:01:04.3]} 35. Qa7 {[%clk 0:00:03]} 35... Bf1 {[%clk 0:00:59.1]} 36. a5
{[%clk 0:00:02.6]} 36... Bd3 {[%clk 0:00:52.9]} 0-1

[Event "*** Titled Tuesday Blitz"]
[Site "Chess.com"]
[Date "2019.02.05"]
[Round "9"]
[White "Abund"]
[Black "Sashadav97"]
[Result "1-0"]
[WhiteElo "2569"]
[BlackElo "2618"]
[TimeControl "180+2"]
[EndTime "15:13:12 PST"]
[Termination "Abund won by resignation"]

1. Nf3 {[%clk 0:03:01.9]} 1... d5 {[%clk 0:02:59.8]} 2. d4 {[%clk 0:03:00.4]}
2... Nf6 {[%clk 0:02:59.6]} 3. c4 {[%clk 0:03:01.6]} 3... e6 {[%clk 0:02:58.1]}
4. Nc3 {[%clk 0:03:02.9]} 4... Be7 {[%clk 0:02:58.6]} 5. Bg5 {[%clk 0:03:02.4]}
5... Nbd7 {[%clk 0:02:48.4]} 6. e3 {[%clk 0:03:01]} 6... h6 {[%clk 0:02:48]} 7.
Bh4 {[%clk 0:03:00.9]} 7... O-O {[%clk 0:02:44.1]} 8. Rc1 {[%clk 0:02:53.5]}
8... c6 {[%clk 0:02:40.7]} 9. Bd3 {[%clk 0:02:50.2]} 9... dxc4 {[%clk
0:02:35.8]} 10. Bxc4 {[%clk 0:02:51.2]} 10... b5 {[%clk 0:02:37.3]} 11. Bd3
{[%clk 0:02:49.2]} 11... Bb7 {[%clk 0:02:38.8]} 12. O-O {[%clk 0:02:47.9]} 12...
a6 {[%clk 0:02:32.4]} 13. a4 {[%clk 0:02:18.5]} 13... Rc8 {[%clk 0:02:24.9]} 14.
Bb1 {[%clk 0:02:09.7]} 14... b4 {[%clk 0:02:13.2]} 15. Bxf6 {[%clk 0:01:41.6]}
15... Nxf6 {[%clk 0:02:05.9]} 16. Ne4 {[%clk 0:01:41.5]} 16... Nxe4 {[%clk
0:01:57.7]} 17. Bxe4 {[%clk 0:01:39.7]} 17... Qb6 {[%clk 0:01:57.9]} 18. Ne5
{[%clk 0:01:36.5]} 18... a5 {[%clk 0:01:55.7]} 19. Nd7 {[%clk 0:01:34.1]} 19...
Qc7 {[%clk 0:01:56.2]} 20. Nxf8 {[%clk 0:01:34.5]} 20... Rxf8 {[%clk 0:01:58.1]}
21. b3 {[%clk 0:01:07.5]} 21... Bd6 {[%clk 0:01:55]} 22. g3 {[%clk 0:01:06.5]}
22... Qd7 {[%clk 0:01:54.1]} 23. Rc2 {[%clk 0:01:03.3]} 23... f5 {[%clk
0:01:52.5]} 24. Bg2 {[%clk 0:01:01.9]} 24... Qe8 {[%clk 0:01:45.6]} 25. Qc1
{[%clk 0:00:56.5]} 25... h5 {[%clk 0:01:41.4]} 26. Bxc6 {[%clk 0:00:55.4]} 26...
Bxc6 {[%clk 0:01:41.2]} 27. Rxc6 {[%clk 0:00:57.3]} 27... Qe7 {[%clk 0:01:43]}
28. Qc4 {[%clk 0:00:53.9]} 28... h4 {[%clk 0:01:42.2]} 29. d5 {[%clk 0:00:55.2]}
29... hxg3 {[%clk 0:01:41.5]} 30. hxg3 {[%clk 0:00:56]} 30... e5 {[%clk
0:01:41.6]} 31. Rc8 {[%clk 0:00:52.4]} 31... f4 {[%clk 0:01:39.5]} 32. Rxf8+
{[%clk 0:00:49.1]} 32... Qxf8 {[%clk 0:01:41.4]} 33. exf4 {[%clk 0:00:48.5]}
33... exf4 {[%clk 0:01:41.7]} 34. Qe4 {[%clk 0:00:38.8]} 34... Qd8 {[%clk
0:01:21.4]} 35. Re1 {[%clk 0:00:34.2]} 35... fxg3 {[%clk 0:01:18.3]} 36. Qe8+
{[%clk 0:00:31.1]} 36... Qxe8 {[%clk 0:01:19.6]} 37. Rxe8+ {[%clk 0:00:33]}
37... Kf7 {[%clk 0:01:21.1]} 38. Rc8 {[%clk 0:00:20]} 38... Kf6 {[%clk
0:01:20.4]} 39. fxg3 {[%clk 0:00:19.7]} 39... Ke5 {[%clk 0:01:21.7]} 40. Ra8
{[%clk 0:00:18.3]} 40... Bc7 {[%clk 0:01:20.1]} 41. Kf2 {[%clk 0:00:16.3]} 41...
Kxd5 {[%clk 0:01:21]} 42. Ke3 {[%clk 0:00:14.8]} 42... g5 {[%clk 0:01:19.2]} 43.
g4 {[%clk 0:00:15.6]} 43... Bf4+ {[%clk 0:01:16.6]} 44. Kd3 {[%clk 0:00:16.3]}
44... Bc7 {[%clk 0:01:17.4]} 45. Ra7 {[%clk 0:00:16.7]} 45... Bb6 {[%clk
0:01:16.8]} 46. Rg7 {[%clk 0:00:17.4]} 46... Ke5 {[%clk 0:01:14.5]} 47. Rxg5+
{[%clk 0:00:17.9]} 47... Kf4 {[%clk 0:01:16]} 48. Rb5 {[%clk 0:00:18.9]} 48...
Bd8 {[%clk 0:01:17]} 49. g5 {[%clk 0:00:20.8]} 49... Bxg5 {[%clk 0:01:15.3]} 50.
Rxa5 {[%clk 0:00:21.7]} 50... Be7 {[%clk 0:01:16.5]} 51. Rb5 {[%clk 0:00:22.9]}
1-0

[Event "*** Titled Tuesday Blitz"]
[Site "Chess.com"]
[Date "2019.02.05"]
[Round "9"]
[White "PowerThinking2650"]
[Black "Naruto-K"]
[Result "0-1"]
[WhiteElo "2251"]
[BlackElo "2367"]
[TimeControl "180+2"]
[EndTime "15:13:12 PST"]
[Termination "Naruto-K won by resignation"]

1. e4 {[%clk 0:03:01.9]} 1... e6 {[%clk 0:03:00.9]} 2. d4 {[%clk 0:02:59.8]}
2... d5 {[%clk 0:03:02]} 3. Nd2 {[%clk 0:03:01.3]} 3... Be7 {[%clk 0:03:02.3]}
4. Ngf3 {[%clk 0:02:58.8]} 4... Nf6 {[%clk 0:03:02.7]} 5. e5 {[%clk 0:03:00]}
5... Nfd7 {[%clk 0:03:03.7]} 6. Bd3 {[%clk 0:03:01.5]} 6... c5 {[%clk
0:03:04.3]} 7. c3 {[%clk 0:03:03.1]} 7... Nc6 {[%clk 0:03:05.9]} 8. O-O {[%clk
0:03:02.8]} 8... g5 {[%clk 0:03:07.4]} 9. dxc5 {[%clk 0:03:03.8]} 9... g4 {[%clk
0:03:08.3]} 10. Nd4 {[%clk 0:03:01.9]} 10... Ndxe5 {[%clk 0:03:09.2]} 11. Bb5
{[%clk 0:02:17.1]} 11... Bd7 {[%clk 0:03:09.8]} 12. b4 {[%clk 0:02:14.5]} 12...
h5 {[%clk 0:03:08.5]} 13. Re1 {[%clk 0:02:13.5]} 13... Ng6 {[%clk 0:03:08.6]}
14. Nxc6 {[%clk 0:02:04.5]} 14... bxc6 {[%clk 0:03:09.1]} 15. Bd3 {[%clk
0:02:05.5]} 15... Nf4 {[%clk 0:03:04.2]} 16. Bf1 {[%clk 0:02:06.2]} 16... Qc7
{[%clk 0:02:53.1]} 17. Nb3 {[%clk 0:02:03]} 17... Ng6 {[%clk 0:02:34.9]} 18. c4
{[%clk 0:01:46.1]} 18... O-O {[%clk 0:02:16.2]} 19. cxd5 {[%clk 0:01:42.5]}
19... exd5 {[%clk 0:02:09.4]} 20. Bb2 {[%clk 0:01:42.4]} 20... Qf4 {[%clk
0:02:01.1]} 21. Bd3 {[%clk 0:01:33.8]} 21... Rae8 {[%clk 0:01:34.9]} 22. g3
{[%clk 0:01:29]} 22... Qxb4 {[%clk 0:01:18.3]} 23. Qc2 {[%clk 0:01:16.1]} 23...
f5 {[%clk 0:01:05.9]} 24. Nd4 {[%clk 0:00:58.9]} 24... Bf6 {[%clk 0:00:45.4]}
25. Rxe8 {[%clk 0:00:53.3]} 25... Rxe8 {[%clk 0:00:45]} 26. a3 {[%clk 0:00:54]}
26... Qb8 {[%clk 0:00:42.7]} 27. Bc3 {[%clk 0:00:45.6]} 27... Qe5 {[%clk
0:00:38.9]} 28. Nb5 {[%clk 0:00:39.8]} 28... Qe7 {[%clk 0:00:25]} 29. Nd6 {[%clk
0:00:40.2]} 29... Rb8 {[%clk 0:00:14]} 30. Re1 {[%clk 0:00:35.5]} 30... Qg7
{[%clk 0:00:15]} 31. Bxf6 {[%clk 0:00:31.3]} 31... Qxf6 {[%clk 0:00:16.9]} 32.
Bxf5 {[%clk 0:00:28.8]} 32... Rb2 {[%clk 0:00:17.1]} 33. Qd3 {[%clk 0:00:21.2]}
33... Ne5 {[%clk 0:00:15.3]} 34. Qd4 {[%clk 0:00:18.5]} 34... Nf3+ {[%clk
0:00:16.4]} 35. Kg2 {[%clk 0:00:17.2]} 35... Nxd4 {[%clk 0:00:15.8]} 0-1